[Event "*** Titled Tuesday Blitz"]
[Site "Chess.com"]
[Date "2020.05.05"]
[Round "3"]
[White "xamax2000"]
[Black "louis198"]
[Result "0-1"]
[WhiteElo "2711"]
[BlackElo "2537"]
[TimeControl "180+1"]
[EndTime "10:30:33 PDT"]
[Termination "louis198 won by resignation"]

1. e4 {[%clk 0:03:00.9]} 1... e6 {[%clk 0:02:59.9]} 2. d4 {[%clk 0:03:00.8]}
2... d5 {[%clk 0:02:59.9]} 3. Nc3 {[%clk 0:03:00.5]} 3... dxe4 {[%clk
0:02:59.7]} 4. Nxe4 {[%clk 0:02:59.4]} 4... Bd7 {[%clk 0:03:00.3]} 5. Nf3 {[%clk
0:02:57.6]} 5... Bc6 {[%clk 0:03:00.6]} 6. Bd3 {[%clk 0:02:57.8]} 6... Nd7
{[%clk 0:03:00.8]} 7. O-O {[%clk 0:02:55.8]} 7... Ngf6 {[%clk 0:03:01]} 8. Ned2
{[%clk 0:02:55.7]} 8... g6 {[%clk 0:03:00.9]} 9. Nc4 {[%clk 0:02:53.6]} 9... Bg7
{[%clk 0:03:00.4]} 10. Na5 {[%clk 0:02:52.9]} 10... O-O {[%clk 0:02:59.1]} 11.
Nxc6 {[%clk 0:02:51.1]} 11... bxc6 {[%clk 0:03:00]} 12. Qe2 {[%clk 0:02:28.1]}
12... c5 {[%clk 0:02:59.3]} 13. dxc5 {[%clk 0:02:27.8]} 13... Nxc5 {[%clk
0:02:58.6]} 14. Bc4 {[%clk 0:02:27]} 14... Nb7 {[%clk 0:02:29.1]} 15. Rd1 {[%clk
0:02:23.4]} 15... Nd6 {[%clk 0:02:28]} 16. Ne5 {[%clk 0:02:19.6]} 16... Nfe4
{[%clk 0:02:13.3]} 17. Nf3 {[%clk 0:02:09.4]} 17... Qe7 {[%clk 0:02:07.7]} 18.
Bb3 {[%clk 0:01:56]} 18... Nc5 {[%clk 0:01:58.6]} 19. c3 {[%clk 0:01:55.6]}
19... Nxb3 {[%clk 0:01:56.3]} 20. axb3 {[%clk 0:01:56.5]} 20... a5 {[%clk
0:01:54.7]} 21. Be3 {[%clk 0:01:47.5]} 21... Rfb8 {[%clk 0:01:53.4]} 22. Ra3
{[%clk 0:01:36.1]} 22... Nf5 {[%clk 0:01:41.7]} 23. Rda1 {[%clk 0:01:32.9]}
23... Nxe3 {[%clk 0:00:52.9]} 24. Qxe3 {[%clk 0:01:33.8]} 24... Qd6 {[%clk
0:00:53.1]} 25. b4 {[%clk 0:01:20.2]} 25... a4 {[%clk 0:00:38.5]} 26. Nd2 {[%clk
0:01:07.4]} 26... Rd8 {[%clk 0:00:27.7]} 27. Ne4 {[%clk 0:00:56.2]} 27... Qd1+
{[%clk 0:00:25.1]} 28. Qe1 {[%clk 0:00:55.8]} 28... Qc2 {[%clk 0:00:25.3]} 29.
R3a2 {[%clk 0:00:28.5]} 29... h6 {[%clk 0:00:25.3]} 30. h3 {[%clk 0:00:22.5]}
30... Rd5 {[%clk 0:00:24.5]} 31. Nc5 {[%clk 0:00:21.7]} 31... Bf8 {[%clk
0:00:23.7]} 32. b3 {[%clk 0:00:18.7]} 32... Qf5 {[%clk 0:00:22.7]} 33. Nxa4
{[%clk 0:00:18]} 33... Rad8 {[%clk 0:00:22.9]} 34. Qe2 {[%clk 0:00:16.6]} 34...
Bg7 {[%clk 0:00:22.6]} 35. Re1 {[%clk 0:00:15.9]} 35... Rd3 {[%clk 0:00:22.1]}
36. Rc2 {[%clk 0:00:14.7]} 36... h5 {[%clk 0:00:22.1]} 37. Rec1 {[%clk
0:00:13.8]} 37... h4 {[%clk 0:00:21.6]} 38. Nc5 {[%clk 0:00:13.5]} 38... R3d5
{[%clk 0:00:21.1]} 39. Re1 {[%clk 0:00:13.3]} 39... Bh6 {[%clk 0:00:21.5]} 40.
Qe4 {[%clk 0:00:13.4]} 40... Qf6 {[%clk 0:00:21.2]} 41. f3 {[%clk 0:00:09.9]}
41... Rd2 {[%clk 0:00:21.1]} 42. Re2 {[%clk 0:00:08.8]} 42... Rd1+ {[%clk
0:00:21.2]} 43. Kf2 {[%clk 0:00:09.1]} 43... Bf4 {[%clk 0:00:20.8]} 44. g4
{[%clk 0:00:05]} 44... hxg3+ {[%clk 0:00:20.1]} 45. Kg2 {[%clk 0:00:05.6]} 45...
Ra1 {[%clk 0:00:19.2]} 46. Ra2 {[%clk 0:00:05.2]} 46... Rxa2 {[%clk 0:00:18.3]}
47. Rxa2 {[%clk 0:00:06.1]} 47... Bd6 {[%clk 0:00:17.9]} 48. Qc2 {[%clk
0:00:03.4]} 48... Bxc5 {[%clk 0:00:17.7]} 49. bxc5 {[%clk 0:00:03.9]} 49... Qf4
{[%clk 0:00:18]} 50. b4 {[%clk 0:00:03.6]} 50... Qe3 {[%clk 0:00:18.3]} 51. Qe2
{[%clk 0:00:01.9]} 51... Qxc3 {[%clk 0:00:17.7]} 52. b5 {[%clk 0:00:02.5]} 52...
Qxc5 {[%clk 0:00:17.3]} 53. Rd2 {[%clk 0:00:03.1]} 53... Rxd2 {[%clk 0:00:16.2]}
54. Qxd2 {[%clk 0:00:04]} 54... Qxb5 {[%clk 0:00:16.4]} 55. Kxg3 {[%clk
0:00:04.2]} 55... Qe5+ {[%clk 0:00:15.1]} 56. f4 {[%clk 0:00:04.3]} 56... Qd6
{[%clk 0:00:15.2]} 57. Qc3 {[%clk 0:00:04.1]} 57... c5 {[%clk 0:00:15.4]} 58. h4
{[%clk 0:00:04.2]} 58... Qd4 {[%clk 0:00:15]} 59. Qxd4 {[%clk 0:00:03.3]} 59...
cxd4 {[%clk 0:00:15.2]} 60. Kf3 {[%clk 0:00:04.2]} 60... f6 {[%clk 0:00:15.5]}
61. Ke4 {[%clk 0:00:04.6]} 61... e5 {[%clk 0:00:16.4]} 0-1

[Event "*** Titled Tuesday Blitz"]
[Site "Chess.com"]
[Date "2020.05.05"]
[Round "3"]
[White "MoreChessJulia"]
[Black "atwalcb"]
[Result "0-1"]
[WhiteElo "1787"]
[BlackElo "2241"]
[TimeControl "180+1"]
[EndTime "10:30:34 PDT"]
[Termination "atwalcb won on time"]

1. d4 {[%clk 0:02:59.9]} 1... d6 {[%clk 0:02:56.5]} 2. c4 {[%clk 0:02:56.2]}
2... e5 {[%clk 0:02:56]} 3. e3 {[%clk 0:02:55.6]} 3... f5 {[%clk 0:02:54.2]} 4.
g3 {[%clk 0:02:49.9]} 4... Nf6 {[%clk 0:02:48.1]} 5. Bg2 {[%clk 0:02:49.7]} 5...
Nbd7 {[%clk 0:02:35.3]} 6. Nh3 {[%clk 0:02:42.4]} 6... c6 {[%clk 0:02:20.7]} 7.
f3 {[%clk 0:02:41.4]} 7... h6 {[%clk 0:02:14.9]} 8. O-O {[%clk 0:02:40.3]} 8...
Be7 {[%clk 0:02:12.7]} 9. Nf2 {[%clk 0:02:39.6]} 9... O-O {[%clk 0:02:12.4]} 10.
f4 {[%clk 0:02:35.8]} 10... e4 {[%clk 0:02:09.4]} 11. Nc3 {[%clk 0:02:32.7]}
11... b6 {[%clk 0:02:04.1]} 12. d5 {[%clk 0:02:26.4]} 12... cxd5 {[%clk
0:01:59.5]} 13. Nxd5 {[%clk 0:02:23.6]} 13... Bb7 {[%clk 0:01:53.5]} 14. Nxe7+
{[%clk 0:02:20.9]} 14... Qxe7 {[%clk 0:01:53.3]} 15. b3 {[%clk 0:02:20.7]} 15...
Nc5 {[%clk 0:01:47.3]} 16. Bb2 {[%clk 0:02:19.4]} 16... Rfd8 {[%clk 0:01:45.5]}
17. Qd4 {[%clk 0:02:12.1]} 17... Ne6 {[%clk 0:01:41.8]} 18. Qc3 {[%clk
0:02:11.4]} 18... Rac8 {[%clk 0:01:26.3]} 19. Rfd1 {[%clk 0:02:05.1]} 19... d5
{[%clk 0:01:26.2]} 20. Bf1 {[%clk 0:02:00.9]} 20... Qc5 {[%clk 0:01:19.6]} 21.
Qe5 {[%clk 0:01:52.3]} 21... Qd6 {[%clk 0:00:59.7]} 22. Qxf5 {[%clk 0:01:51.2]}
22... Nf8 {[%clk 0:00:47.7]} 23. Be5 {[%clk 0:01:29]} 23... Qe7 {[%clk
0:00:44.7]} 24. cxd5 {[%clk 0:01:26.2]} 24... Nxd5 {[%clk 0:00:34.5]} 25. Rxd5
{[%clk 0:01:04.5]} 25... Bxd5 {[%clk 0:00:33.2]} 26. Rd1 {[%clk 0:01:02.9]}
26... Be6 {[%clk 0:00:32.1]} 27. Qxe4 {[%clk 0:01:00]} 27... Rxd1 {[%clk
0:00:32]} 28. Nxd1 {[%clk 0:00:59.2]} 28... Qd7 {[%clk 0:00:30.9]} 29. Nf2
{[%clk 0:00:46.7]} 29... Rc1 {[%clk 0:00:28.5]} 30. Qd4 {[%clk 0:00:39.1]} 30...
Qc6 {[%clk 0:00:24.7]} 31. Bxg7 {[%clk 0:00:33]} 31... Qb5 {[%clk 0:00:12.9]}
32. Nd3 {[%clk 0:00:24.8]} 32... Rd1 {[%clk 0:00:09.6]} 33. Bxf8 {[%clk
0:00:20.5]} 33... Kxf8 {[%clk 0:00:09.9]} 34. Qf6+ {[%clk 0:00:17]} 34... Bf7
{[%clk 0:00:09.5]} 35. Qh8+ {[%clk 0:00:14.6]} 35... Ke7 {[%clk 0:00:09.4]} 36.
Qe5+ {[%clk 0:00:09.6]} 36... Qxe5 {[%clk 0:00:09.2]} 37. Nxe5 {[%clk
0:00:09.7]} 37... Ra1 {[%clk 0:00:09]} 38. Kf2 {[%clk 0:00:09.8]} 38... Rxa2+
{[%clk 0:00:09.3]} 39. Kf3 {[%clk 0:00:09.5]} 39... Rxh2 {[%clk 0:00:09]} 40.
Bc4 {[%clk 0:00:07.6]} 40... Bxc4 {[%clk 0:00:08.4]} 41. Nxc4 {[%clk 0:00:07.2]}
41... Rc2 {[%clk 0:00:07.3]} 42. e4 {[%clk 0:00:07]} 42... Rc3+ {[%clk
0:00:07.5]} 43. Kg4 {[%clk 0:00:06.4]} 43... Rxb3 {[%clk 0:00:08.4]} 44. e5
{[%clk 0:00:06.3]} 44... Rc3 {[%clk 0:00:08.2]} 45. Nd6 {[%clk 0:00:06]} 45...
a5 {[%clk 0:00:08.6]} 46. Nf5+ {[%clk 0:00:05.1]} 46... Ke6 {[%clk 0:00:09.2]}
47. Nxh6 {[%clk 0:00:04.6]} 47... Rc4 {[%clk 0:00:09.6]} 48. Kf3 {[%clk
0:00:02.9]} 48... a4 {[%clk 0:00:10]} 49. Ng4 {[%clk 0:00:02.4]} 49... a3 {[%clk
0:00:10.3]} 50. Ne3 {[%clk 0:00:01.6]} 50... a2 {[%clk 0:00:10.5]} 51. f5+
{[%clk 0:00:01.1]} 51... Ke7 {[%clk 0:00:09.4]} 0-1

[Event "*** Titled Tuesday Blitz"]
[Site "Chess.com"]
[Date "2020.05.05"]
[Round "3"]
[White "GianmarcoVaR"]
[Black "Manukyan_Artak"]
[Result "1-0"]
[WhiteElo "2536"]
[BlackElo "2340"]
[TimeControl "180+1"]
[EndTime "10:30:35 PDT"]
[Termination "GianmarcoVaR won by resignation"]

1. d4 {[%clk 0:02:57.9]} 1... Nf6 {[%clk 0:02:59.2]} 2. c4 {[%clk 0:02:58.3]}
2... e6 {[%clk 0:02:58.9]} 3. Nf3 {[%clk 0:02:58.7]} 3... b6 {[%clk 0:02:58.1]}
4. g3 {[%clk 0:02:59.1]} 4... Bb7 {[%clk 0:02:58.2]} 5. Bg2 {[%clk 0:02:59.5]}
5... c5 {[%clk 0:02:58.2]} 6. d5 {[%clk 0:02:58.1]} 6... exd5 {[%clk 0:02:57.6]}
7. Nh4 {[%clk 0:02:58.1]} 7... g6 {[%clk 0:02:57.1]} 8. Nc3 {[%clk 0:02:57.1]}
8... Bg7 {[%clk 0:02:56.4]} 9. O-O {[%clk 0:02:57.6]} 9... O-O {[%clk
0:02:56.1]} 10. cxd5 {[%clk 0:02:55.3]} 10... d6 {[%clk 0:02:55.6]} 11. h3
{[%clk 0:02:37.8]} 11... Na6 {[%clk 0:02:50.5]} 12. Re1 {[%clk 0:02:27.2]} 12...
Nc7 {[%clk 0:02:49.8]} 13. a4 {[%clk 0:02:24.7]} 13... a6 {[%clk 0:02:48.1]} 14.
Qb3 {[%clk 0:02:15.2]} 14... b5 {[%clk 0:02:40.3]} 15. e4 {[%clk 0:01:54.8]}
15... b4 {[%clk 0:02:24.5]} 16. Nd1 {[%clk 0:01:48.1]} 16... Re8 {[%clk
0:02:17.7]} 17. Bd2 {[%clk 0:01:37.6]} 17... a5 {[%clk 0:02:16.2]} 18. Qc2
{[%clk 0:01:25.4]} 18... Nd7 {[%clk 0:01:51.5]} 19. Ne3 {[%clk 0:01:14]} 19...
Nb6 {[%clk 0:01:47.5]} 20. Rab1 {[%clk 0:01:04.6]} 20... Rc8 {[%clk 0:01:22.1]}
21. b3 {[%clk 0:01:04.6]} 21... Na6 {[%clk 0:01:13.8]} 22. Bf1 {[%clk 0:01:01]}
22... c4 {[%clk 0:01:07.7]} 23. Nxc4 {[%clk 0:00:59.3]} 23... Nxc4 {[%clk
0:01:07.3]} 24. Bxc4 {[%clk 0:00:58.8]} 24... Nc5 {[%clk 0:01:07.4]} 25. Nf3
{[%clk 0:00:40.7]} 25... Ba6 {[%clk 0:00:56.1]} 26. Bg5 {[%clk 0:00:31.4]} 26...
Bf6 {[%clk 0:00:47.3]} 27. Bxf6 {[%clk 0:00:24.6]} 27... Qxf6 {[%clk 0:00:48.2]}
28. Nd2 {[%clk 0:00:20]} 28... Nd7 {[%clk 0:00:40.4]} 29. Qd1 {[%clk 0:00:18.2]}
29... Bxc4 {[%clk 0:00:37.3]} 30. Nxc4 {[%clk 0:00:18.4]} 30... Ne5 {[%clk
0:00:37.8]} 31. Nxe5 {[%clk 0:00:16.1]} 31... Qxe5 {[%clk 0:00:33.5]} 32. Rc1
{[%clk 0:00:16.2]} 32... Rc3 {[%clk 0:00:31.5]} 33. Rxc3 {[%clk 0:00:14.8]}
33... bxc3 {[%clk 0:00:32.4]} 34. Qd3 {[%clk 0:00:13.9]} 34... Rc8 {[%clk
0:00:32.3]} 35. Rc1 {[%clk 0:00:14.3]} 35... g5 {[%clk 0:00:30]} 36. Kg2 {[%clk
0:00:14.5]} 36... h5 {[%clk 0:00:29]} 37. Qe3 {[%clk 0:00:14.1]} 37... c2 {[%clk
0:00:21.9]} 38. Kf1 {[%clk 0:00:09.5]} 38... f6 {[%clk 0:00:20.6]} 39. Qd2
{[%clk 0:00:07.4]} 39... Qb2 {[%clk 0:00:19]} 40. e5 {[%clk 0:00:04.2]} 40...
Qxe5 {[%clk 0:00:12.4]} 41. Rxc2 {[%clk 0:00:03.1]} 41... Rxc2 {[%clk 0:00:12]}
42. Qxc2 {[%clk 0:00:03.6]} 42... Qxd5 {[%clk 0:00:12.9]} 43. Qg6+ {[%clk
0:00:04]} 43... Kf8 {[%clk 0:00:11.1]} 44. Qxf6+ {[%clk 0:00:04.4]} 44... Ke8
{[%clk 0:00:12]} 45. Qh8+ {[%clk 0:00:04.1]} 45... Kd7 {[%clk 0:00:12.3]} 46.
Qg7+ {[%clk 0:00:03.6]} 46... Kc6 {[%clk 0:00:12.4]} 47. Qc3+ {[%clk 0:00:04]}
47... Qc5 {[%clk 0:00:11]} 48. Qxc5+ {[%clk 0:00:02.5]} 48... Kxc5 {[%clk
0:00:11.1]} 49. Ke2 {[%clk 0:00:02.3]} 49... Kb4 {[%clk 0:00:10.2]} 50. f4
{[%clk 0:00:02.8]} 50... gxf4 {[%clk 0:00:10.2]} 51. gxf4 {[%clk 0:00:03.7]}
51... Kc3 {[%clk 0:00:05]} 52. f5 {[%clk 0:00:03.7]} 52... d5 {[%clk 0:00:05.4]}
53. f6 {[%clk 0:00:04.1]} 53... d4 {[%clk 0:00:05.8]} 54. f7 {[%clk 0:00:04.2]}
54... d3+ {[%clk 0:00:06.1]} 55. Kd1 {[%clk 0:00:04.1]} 55... Kxb3 {[%clk
0:00:06.4]} 56. f8=Q {[%clk 0:00:04.6]} 1-0

[Event "*** Titled Tuesday Blitz"]
[Site "Chess.com"]
[Date "2020.05.05"]
[Round "3"]
[White "SmirnovTimofey2000"]
[Black "Matibar"]
[Result "0-1"]
[WhiteElo "2530"]
[BlackElo "2803"]
[TimeControl "180+1"]
[EndTime "10:30:40 PDT"]
[Termination "Matibar won on time"]

1. e4 {[%clk 0:02:57.5]} 1... e5 {[%clk 0:02:58.7]} 2. Nf3 {[%clk 0:02:56.1]}
2... Nc6 {[%clk 0:02:59.3]} 3. Bb5 {[%clk 0:02:56]} 3... a6 {[%clk 0:02:58.1]}
4. Ba4 {[%clk 0:02:56.1]} 4... Nf6 {[%clk 0:02:58]} 5. O-O {[%clk 0:02:55.9]}
5... b5 {[%clk 0:02:58.6]} 6. Bb3 {[%clk 0:02:55.6]} 6... Bb7 {[%clk 0:02:59]}
7. Re1 {[%clk 0:02:54.8]} 7... Bc5 {[%clk 0:02:54.7]} 8. c3 {[%clk 0:02:52.1]}
8... d6 {[%clk 0:02:55.1]} 9. d4 {[%clk 0:02:51.4]} 9... Bb6 {[%clk 0:02:55.5]}
10. Bg5 {[%clk 0:02:48.5]} 10... h6 {[%clk 0:02:55.1]} 11. Bh4 {[%clk
0:02:48.7]} 11... g5 {[%clk 0:02:42]} 12. Bg3 {[%clk 0:02:47.3]} 12... Qe7
{[%clk 0:02:26.9]} 13. Bd5 {[%clk 0:02:29.5]} 13... O-O {[%clk 0:02:16.9]} 14.
dxe5 {[%clk 0:02:25.7]} 14... dxe5 {[%clk 0:02:11.7]} 15. Bxc6 {[%clk
0:02:12.6]} 15... Bxc6 {[%clk 0:02:11.1]} 16. Nxe5 {[%clk 0:02:12.8]} 16... Bxe4
{[%clk 0:01:54.5]} 17. Nd2 {[%clk 0:02:00.3]} 17... Rad8 {[%clk 0:01:27.7]} 18.
Qc1 {[%clk 0:01:43.1]} 18... Ba8 {[%clk 0:01:00.6]} 19. Ng4 {[%clk 0:01:26.1]}
19... Qxe1+ {[%clk 0:01:00.3]} 20. Qxe1 {[%clk 0:01:25.3]} 20... Nxg4 {[%clk
0:01:01.2]} 21. Nf3 {[%clk 0:01:00.4]} 21... Rfe8 {[%clk 0:00:57.9]} 22. Qf1
{[%clk 0:01:00.2]} 22... Bd5 {[%clk 0:00:48.1]} 23. b3 {[%clk 0:00:59.6]} 23...
Bxf3 {[%clk 0:00:38.8]} 24. gxf3 {[%clk 0:00:59]} 24... Ne5 {[%clk 0:00:39.7]}
25. Kg2 {[%clk 0:00:52.5]} 25... Ng6 {[%clk 0:00:35.5]} 26. Rd1 {[%clk
0:00:43.8]} 26... f5 {[%clk 0:00:34]} 27. Rxd8 {[%clk 0:00:36.6]} 27... Rxd8
{[%clk 0:00:34.9]} 28. Qb1 {[%clk 0:00:36.2]} 28... Rf8 {[%clk 0:00:34.3]} 29.
Qd3 {[%clk 0:00:28.9]} 29... Kg7 {[%clk 0:00:32.1]} 30. h3 {[%clk 0:00:20.2]}
30... f4 {[%clk 0:00:31.3]} 31. Bh2 {[%clk 0:00:20.2]} 31... Rf6 {[%clk
0:00:21.3]} 32. Qd7+ {[%clk 0:00:16.5]} 32... Rf7 {[%clk 0:00:21.1]} 33. Qd5
{[%clk 0:00:16.5]} 33... Nh4+ {[%clk 0:00:15.7]} 34. Kf1 {[%clk 0:00:16]} 34...
Nf5 {[%clk 0:00:13.8]} 35. c4 {[%clk 0:00:11.5]} 35... bxc4 {[%clk 0:00:14.2]}
36. bxc4 {[%clk 0:00:11.3]} 36... Bd4 {[%clk 0:00:14.5]} 37. c5 {[%clk
0:00:10.4]} 37... Kg6 {[%clk 0:00:10]} 38. h4 {[%clk 0:00:10.3]} 38... Rf6
{[%clk 0:00:07.7]} 39. hxg5 {[%clk 0:00:10.1]} 39... hxg5 {[%clk 0:00:08.6]} 40.
Ke2 {[%clk 0:00:08.7]} 40... Ba1 {[%clk 0:00:06.7]} 41. Kf1 {[%clk 0:00:07.7]}
41... Nh4 {[%clk 0:00:06.2]} 42. Qd3+ {[%clk 0:00:06.3]} 42... Nf5 {[%clk
0:00:06.7]} 43. Kg2 {[%clk 0:00:05.5]} 43... Bd4 {[%clk 0:00:07.2]} 44. Kh3
{[%clk 0:00:04.5]} 44... Bxc5 {[%clk 0:00:07]} 45. Kg4 {[%clk 0:00:03.5]} 45...
Bd6 {[%clk 0:00:07.6]} 46. Kh3 {[%clk 0:00:02]} 46... Kh5 {[%clk 0:00:07.7]} 47.
Kg2 {[%clk 0:00:02.4]} 47... Nh4+ {[%clk 0:00:07.9]} 48. Kf1 {[%clk 0:00:01.5]}
48... Kh6 {[%clk 0:00:08.8]} 49. Qd5 {[%clk 0:00:01.8]} 49... Kg6 {[%clk
0:00:09]} 50. Qe4+ {[%clk 0:00:02.2]} 50... Nf5 {[%clk 0:00:09.2]} 51. Kg2
{[%clk 0:00:01.4]} 51... Kh6 {[%clk 0:00:09.5]} 52. Bg1 {[%clk 0:00:01.9]} 52...
Nh4+ {[%clk 0:00:10.4]} 53. Kf1 {[%clk 0:00:02.3]} 53... Ng6 {[%clk 0:00:11.3]}
54. Qd5 {[%clk 0:00:02.6]} 54... Ne5 {[%clk 0:00:11.8]} 55. Qe4 {[%clk
0:00:02.9]} 55... Re6 {[%clk 0:00:11.9]} 56. Qd5 {[%clk 0:00:03.4]} 56... Rf6
{[%clk 0:00:11.8]} 57. Kg2 {[%clk 0:00:04.1]} 57... Ng6 {[%clk 0:00:11.9]} 58.
Bh2 {[%clk 0:00:04.2]} 58... Bb4 {[%clk 0:00:11.8]} 59. Kf1 {[%clk 0:00:05.1]}
59... a5 {[%clk 0:00:12]} 60. Qb5 {[%clk 0:00:04.5]} 60... Nh4 {[%clk 0:00:12]}
61. Qd3 {[%clk 0:00:03.6]} 61... Re6 {[%clk 0:00:12.3]} 0-1

[Event "*** Titled Tuesday Blitz"]
[Site "Chess.com"]
[Date "2020.05.05"]
[Round "3"]
[White "MartinMatthiesen"]
[Black "chesslh19"]
[Result "1-0"]
[WhiteElo "2477"]
[BlackElo "2159"]
[TimeControl "180+1"]
[EndTime "10:30:45 PDT"]
[Termination "MartinMatthiesen won on time"]

1. d4 {[%clk 0:03:00.9]} 1... Nf6 {[%clk 0:02:59.4]} 2. c4 {[%clk 0:03:00.3]}
2... e6 {[%clk 0:03:00]} 3. Nf3 {[%clk 0:02:59.7]} 3... d5 {[%clk 0:02:59.6]} 4.
Nc3 {[%clk 0:02:58.8]} 4... c5 {[%clk 0:02:59.4]} 5. cxd5 {[%clk 0:02:58.5]}
5... cxd4 {[%clk 0:02:59.7]} 6. Qxd4 {[%clk 0:02:47.1]} 6... exd5 {[%clk
0:02:59.4]} 7. Bg5 {[%clk 0:02:43.3]} 7... Be7 {[%clk 0:02:57.8]} 8. e3 {[%clk
0:02:33.9]} 8... Nc6 {[%clk 0:02:50.1]} 9. Qd2 {[%clk 0:02:29.3]} 9... O-O
{[%clk 0:02:41.5]} 10. Be2 {[%clk 0:02:28.4]} 10... Be6 {[%clk 0:02:14.2]} 11.
O-O {[%clk 0:02:25.1]} 11... Ne4 {[%clk 0:01:18.7]} 12. Bxe7 {[%clk 0:01:45.4]}
12... Nxe7 {[%clk 0:00:56.6]} 13. Qd3 {[%clk 0:01:25.7]} 13... Nxc3 {[%clk
0:00:43.8]} 14. Qxc3 {[%clk 0:01:25.3]} 14... Rc8 {[%clk 0:00:41.3]} 15. Qa3
{[%clk 0:01:22.2]} 15... Nc6 {[%clk 0:00:38.3]} 16. Rfd1 {[%clk 0:01:17.5]}
16... Qa5 {[%clk 0:00:37.2]} 17. Qxa5 {[%clk 0:01:15.2]} 17... Nxa5 {[%clk
0:00:37.2]} 18. Nd4 {[%clk 0:01:14.6]} 18... Nc6 {[%clk 0:00:26.4]} 19. Nb3
{[%clk 0:01:00.9]} 19... b6 {[%clk 0:00:19.7]} 20. Rac1 {[%clk 0:00:46.6]} 20...
Ne5 {[%clk 0:00:15.7]} 21. Ba6 {[%clk 0:00:41.1]} 21... Rxc1 {[%clk 0:00:12.4]}
22. Rxc1 {[%clk 0:00:42]} 22... Nc4 {[%clk 0:00:11.2]} 23. Rc2 {[%clk
0:00:35.3]} 23... Rd8 {[%clk 0:00:06.1]} 24. Nd4 {[%clk 0:00:34.2]} 24... Kf8
{[%clk 0:00:04.6]} 25. Kf1 {[%clk 0:00:30.8]} 25... Ke8 {[%clk 0:00:02.8]} 26.
Ke2 {[%clk 0:00:20.5]} 26... Nd6 {[%clk 0:00:02.9]} 27. Rc7 {[%clk 0:00:18.4]}
27... Rd7 {[%clk 0:00:02.5]} 28. Rc6 {[%clk 0:00:12.3]} 28... Rd8 {[%clk
0:00:02.3]} 29. Nb5 {[%clk 0:00:08.1]} 29... Bd7 {[%clk 0:00:01.9]} 30. Nxd6+
{[%clk 0:00:07.2]} 30... Kf8 {[%clk 0:00:02.3]} 31. Rc7 {[%clk 0:00:06.8]} 31...
Bg4+ {[%clk 0:00:02.3]} 32. f3 {[%clk 0:00:06.4]} 32... Bxf3+ {[%clk 0:00:02.6]}
33. Kxf3 {[%clk 0:00:05.9]} 33... Rxd6 {[%clk 0:00:03.3]} 34. Rxa7 {[%clk
0:00:05.8]} 34... Rf6+ {[%clk 0:00:03.5]} 35. Ke2 {[%clk 0:00:06]} 35... Rc6
{[%clk 0:00:03.1]} 36. Kd3 {[%clk 0:00:05]} 36... Rh6 {[%clk 0:00:02.8]} 37. h3
{[%clk 0:00:04.6]} 37... Rg6 {[%clk 0:00:03.1]} 38. g4 {[%clk 0:00:04.8]} 38...
Rc6 {[%clk 0:00:03]} 39. Ra8+ {[%clk 0:00:04.4]} 39... Ke7 {[%clk 0:00:03]} 40.
Bb5 {[%clk 0:00:04.2]} 40... Rh6 {[%clk 0:00:02.5]} 41. Re8+ {[%clk 0:00:03.3]}
41... Kd6 {[%clk 0:00:01.9]} 42. Rc8 {[%clk 0:00:03.1]} 42... Rxh3 {[%clk
0:00:01.2]} 43. Rc6+ {[%clk 0:00:03.4]} 43... Ke7 {[%clk 0:00:01.1]} 44. Rxb6
{[%clk 0:00:03.8]} 44... h6 {[%clk 0:00:01.4]} 45. Kd4 {[%clk 0:00:03.9]} 45...
g6 {[%clk 0:00:01.8]} 46. Rb7+ {[%clk 0:00:04.2]} 46... Kf6 {[%clk 0:00:01.3]}
47. Be8 {[%clk 0:00:04.1]} 47... Rh4 {[%clk 0:00:01.5]} 48. Rxf7+ {[%clk
0:00:03.7]} 48... Ke6 {[%clk 0:00:02.1]} 49. Rg7 {[%clk 0:00:03.6]} 49... Rxg4+
{[%clk 0:00:02.3]} 50. Kd3 {[%clk 0:00:04]} 50... g5 {[%clk 0:00:02.8]} 51. Rg6+
{[%clk 0:00:03.9]} 51... Ke7 {[%clk 0:00:02.9]} 52. Bc6 {[%clk 0:00:03.6]} 52...
Rb4 {[%clk 0:00:02.8]} 53. b3 {[%clk 0:00:03.2]} 53... Rb6 {[%clk 0:00:03.1]}
54. Rxh6 {[%clk 0:00:02.3]} 54... Kf7 {[%clk 0:00:02.8]} 55. Kd4 {[%clk
0:00:02.5]} 55... Kg7 {[%clk 0:00:02.9]} 56. Rd6 {[%clk 0:00:03.1]} 56... Ra6
{[%clk 0:00:01.6]} 57. Rd7+ {[%clk 0:00:03.4]} 57... Kf6 {[%clk 0:00:01.3]} 58.
Ba4 {[%clk 0:00:04]} 58... g4 {[%clk 0:00:01.3]} 59. Rxd5 {[%clk 0:00:03.8]}
59... g3 {[%clk 0:00:01.6]} 60. Rd8 {[%clk 0:00:03.5]} 60... Kg5 {[%clk
0:00:01]} 61. Rg8+ {[%clk 0:00:03.4]} 1-0